bitfinex/quotes_ETHUSD_20240821
["timestamp","ask_amount","ask_price","bid_price","bid_amount"]
[1724283382612,7.20159958,2628.8,2628.3,2.2706]
[1724283383314,3.39751958,2628.8,2628.3,2.2706]
[1724283384418,0.07450155,2628.7,2628.3,2.2706]
[1724283384916,3.80431,2628.6,2628.3,2.2706]
[1724283385093,3.80431,2628.6,2627.9,3.80525]
[1724283385094,3.80455,2628.5,2628.0,2.2706]
[1724283385468,0.07417796,2628.4,2628.0,2.2706]
[1724283385695,3.87877796,2628.4,2628.0,2.2706]
[1724283386010,3.80505,2628.1,2627.6,2.2706]
[1724283386539,0.07372711,2628.0,2627.6,2.2706]
[1724283387714,3.80482,2628.3,2627.6,6.07621]
[1724283387873,0.07341531,2627.9,2627.6,6.07621]
[1724283388188,3.80482,2628.3,2627.6,6.07621]
[1724283388390,3.80482,2628.3,2627.7,3.80551]
[1724283388621,0.07374942,2628.2,2627.7,7.61101]
[1724283388820,6.80461,2628.4,2627.7,7.61101]
[1724283389125,0.0736158,2628.1,2628.0,6.07574]
[1724283389300,3.8046,2628.4,2628.0,2.2706]
[1724283389472,0.07329839,2628.1,2628.0,2.2706]
[1724283389673,3.80506,2628.1,2627.6,2.2706]
[1724283389874,3.87835078,2628.1,2627.6,2.2706]
[1724283390313,0.07329078,2628.1,2627.6,2.2706]
[1724283390721,0.07329078,2628.1,2627.6,6.07631]
[1724283390892,0.07329078,2628.1,2627.7,3.8056]
[1724283391218,3.80474,2628.3,2627.7,3.8056]
[1724283391421,0.07318878,2628.0,2627.7,3.8056]
[1724283391677,3.80474,2628.3,2627.7,3.8056]
[1724283391968,3.80466,2628.4,2627.7,3.8056]
[1724283392175,0.07339277,2628.2,2627.8,3.80544]
[1724283392378,3.80466,2628.4,2627.8,3.80544]
[1724283392524,0.07329078,2628.1,2628.0,2.2706]
[1724283392729,0.39757564,2628.5,2628.0,2.2706]
[1724283392730,0.39757564,2628.5,2628.0,6.07577]
[1724283393076,0.07358663,2628.4,2628.0,6.07577]
[1724283394072,0.07358663,2628.4,2628.0,2.2706]
[1724283394925,3.8049,2628.2,2627.6,2.2706]
[1724283395123,3.87850898,2628.1,2627.6,2.2706]
[1724283395349,0.07339898,2628.1,2627.6,2.2706]
[1724283395732,3.87845898,2628.1,2627.6,2.2706]
[1724283397355,3.80521,2628.0,2627.6,2.2706]
[1724283397525,0.07298403,2627.9,2627.6,2.2706]
[1724283398968,0.07282849,2627.8,2627.6,2.2706]
[1724283399200,7.61021,2628.1,2627.6,2.2706]
[1724283399484,0.07272647,2627.7,2627.6,2.2706]
[1724283399702,3.80506,2628.1,2627.6,2.2706]
[1724283399902,0.07274186,2627.7,2627.6,2.2706]
[1724283400079,3.80506,2628.1,2627.6,2.2706]
[1724283400288,0.07271374,2627.7,2627.6,2.2706]
[1724283400469,3.80506,2628.1,2627.6,2.2706]
[1724283400667,0.07271374,2627.7,2627.6,2.2706]
[1724283400869,3.80506,2628.1,2627.6,2.2706]
[1724283401095,0.07271374,2627.7,2627.6,2.2706]
[1724283401299,3.80506,2628.1,2627.6,2.2706]
[1724283401455,0.07271374,2627.7,2627.6,2.2706]
[1724283401658,3.80506,2628.1,2627.6,2.2706]
[1724283402150,0.07301978,2628.0,2627.6,2.2706]
[1724283403202,0.07301978,2628.0,2627.8,2.3469]
[1724283403362,3.0,2628.2,2627.8,2.3469]
[1724283403560,0.07303198,2628.1,2627.8,2.3469]
[1724283404054,0.07303198,2628.1,2627.8,6.15236]
[1724283404590,3.8046,2628.4,2627.8,6.15236]
[1724283404800,0.0729581,2628.0,2627.8,6.15236]
[1724283405090,3.8046,2628.4,2627.8,6.15236]
[1724283405612,0.07323595,2628.3,2627.8,6.15228]
[1724283406284,7.68288595,2628.3,2627.8,2.3469]
[1724283406483,3.80488,2628.2,2627.8,2.3469]
[1724283406895,0.07303198,2628.1,2627.8,2.3469]
[1724283407204,0.47062222,2628.1,2627.8,2.3469]
[1724283409458,0.47062222,2628.1,2627.9,2.3812]
[1724283413608,0.47062222,2628.1,2627.9,6.18651]
[1724283413780,0.47062222,2628.1,2628.0,6.09867]
[1724283413974,0.39759024,2628.1,2628.0,6.09867]
[1724283414181,0.47062829,2628.1,2628.0,6.09867]
[1724283414398,0.47062829,2628.1,2628.0,10.894238]
[1724283414818,0.39759024,2628.1,2628.0,10.894238]
[1724283420558,0.39759024,2628.1,2628.0,7.089068]
[1724283422127,0.39759024,2628.1,2628.0,10.894238]
[1724283422332,0.39759024,2628.1,2628.0,7.089068]
[1724283423861,0.39759024,2628.1,2628.0,10.894238]
[1724283425036,0.39759024,2628.1,2628.0,14.699408]
[1724283425762,3.93,2629.1,2628.7,3.80411]
[1724283425944,3.93,2629.1,2628.8,2.4835]
[1724283426134,0.47202599,2629.0,2628.8,2.4835]
[1724283428738,0.47202599,2629.0,2628.6,2.4835]
[1724283428938,3.80395,2628.9,2628.4,7.49]
[1724283429443,3.87858758,2628.8,2628.4,7.49]
[1724283429874,3.80472,2628.4,2628.2,2.4835]
[1724283430054,0.39748279,2629.0,2627.5,15.95582]
[1724283430055,3.80501,2628.2,2627.7,2.423]
[1724283430382,3.80498,2628.2,2627.7,2.423]
[1724283431038,0.0736184,2628.1,2627.7,5.390461]
[1724283431242,3.80467,2628.4,2627.8,3.80545]
[1724283431446,0.07334716,2628.0,2627.8,3.80545]
[1724283431643,3.80467,2628.4,2627.8,3.80545]
[1724283431836,0.07305095,2627.9,2627.8,3.80545]
[1724283432051,3.80467,2628.4,2627.8,1.06369072]
[1724283432288,0.07305095,2627.9,2627.7,9.195971]
[1724283432459,3.80467,2628.4,2627.7,13.001481]
[1724283432783,0.07294893,2627.8,2627.7,13.001571]
[1724283433084,3.80447,2628.5,2627.9,3.80527]
[1724283435644,3.8046,2628.4,2627.9,3.80527]
[1724283435848,3.8046,2628.4,2627.7,13.71851]
[1724283436089,3.80497,2628.2,2627.7,9.913]
[1724283437266,3.80497,2628.2,2627.7,10.81419517]
[1724283437484,3.80497,2628.2,2627.7,3.32419517]
[1724283437648,3.80466,2628.4,2627.7,7.12979517]
[1724283437854,3.80482,2628.3,2627.8,2.4584]
[1724283438282,7.60904,2628.5,2627.8,6.26384]
[1724283438485,3.80446,2628.5,2627.9,3.80529]
[1724283438682,3.80465,2628.4,2627.8,2.4584]
[1724283439194,3.80465,2628.4,2627.8,6.26384]
[1724283441402,3.80477,2628.3,2627.8,6.26384]
[1724283441704,4.2023005,2628.3,2627.8,6.26384]
[1724283441920,8.0071305,2628.3,2627.8,2.4584]
[1724283442477,3.80496,2628.2,2627.8,2.4584]
[1724283442677,3.80496,2628.2,2627.6,3.80562]
[1724283442678,3.80542,2627.9,2627.4,21.70669]
[1724283442879,0.6437,2627.9,2626.6,2.3957]
[1724283443211,3.80662,2627.0,2626.6,2.3957]
[1724283444446,0.07181126,2626.9,2626.6,2.3957]
[1724283445067,0.07181126,2626.9,2626.6,3.016013]
[1724283445304,7.61221,2627.4,2626.6,6.823093]
[1724283445305,3.0,2627.3,2626.6,6.823093]
[1724283445515,0.07102765,2626.8,2626.6,6.823093]
[1724283445708,6.8062,2627.3,2626.6,6.823093]
[1724283446016,0.07089128,2626.7,2626.6,6.823093]
[1724283446355,3.80635,2627.2,2626.6,6.823093]
[1724283446639,6.80581,2627.6,2626.8,2.4436]
[1724283446772,0.07129963,2627.1,2626.8,2.4436]
[1724283447344,0.07119765,2627.0,2626.8,2.4436]
[1724283447701,3.80619,2627.3,2626.8,2.4436]
[1724283447901,0.07120358,2626.9,2626.8,3.1307063]
[1724283448107,3.80619,2627.3,2626.8,3.1307063]
[1724283448306,0.0712304,2626.9,2626.8,2.4436]
[1724283448485,3.80619,2627.3,2626.8,2.4436]
[1724283448686,0.0712304,2626.9,2626.8,2.4436]
[1724283448932,3.80645,2627.2,2626.8,2.4436]
[1724283449113,0.07117424,2626.9,2626.8,2.4436]
[1724283449438,3.80645,2627.2,2626.8,2.4436]
[1724283449742,0.07116784,2626.9,2626.8,2.4436]
[1724283449948,3.80645,2627.2,2626.8,2.4436]
[1724283450087,0.07111298,2626.9,2626.8,2.4436]
[1724283450287,3.8065,2627.1,2626.8,2.4436]
[1724283450639,0.07116784,2626.9,2626.8,2.4436]
[1724283450803,3.8065,2627.1,2626.8,2.4436]
[1724283450987,0.07126992,2627.0,2626.8,2.4436]
[1724283451190,0.07126992,2627.0,2626.6,2.2891]
[1724283451382,3.80692,2626.8,2626.1,2.2891]
[1724283451597,3.80692,2626.8,2626.1,2.898816]
[1724283451598,3.80705,2626.7,2626.1,2.898816]
[1724283451797,3.87797175,2626.7,2626.1,2.898816]
[1724283452245,0.07092175,2626.7,2626.1,6.706626]
[1724283452443,0.07092175,2626.7,2626.2,1.0514586]
[1724283452993,3.80759,2626.4,2625.7,2.2891]
[1724283453291,3.80802,2626.1,2625.7,2.2891]
[1724283453779,0.9467271,2626.6,2625.7,2.2891]
[1724283453780,0.07011308,2626.0,2625.7,2.2891]
[1724283453926,0.07011308,2626.0,2625.8,3.80823]
[1724283454125,3.80738,2626.5,2625.8,7.61649]
[1724283454327,0.06998058,2625.9,2625.8,7.61672]
[1724283454530,3.80692,2626.8,2626.1,3.8078]
[1724283454833,3.80692,2626.8,2626.2,2.2891]
[1724283455263,3.8067,2627.0,2626.2,2.2891]
[1724283455477,4.15,2627.1,2626.3,3.80751]
[1724283455631,3.80671,2627.0,2626.3,3.80751]
[1724283455831,3.80671,2627.0,2626.3,7.61506]
[1724283456028,3.80671,2627.0,2626.3,3.80751]
[1724283456389,3.80671,2627.0,2626.3,7.61504]
[1724283456679,3.80671,2627.0,2626.4,3.80748]
[1724283456876,0.39766179,2626.9,2626.3,4.858893]
[1724283458129,4.20446179,2626.9,2626.3,4.858893]
[1724283458330,4.20446179,2626.9,2626.3,3.80751]
[1724283459249,0.07084358,2626.8,2626.3,3.80751]
[1724283460291,0.07084358,2626.8,2626.4,2.2803]
[1724283460787,0.07084358,2626.8,2626.4,6.08777]
[1724283461359,0.07084358,2626.8,2626.4,3.269828]
[1724283461702,0.07084358,2626.8,2626.4,2.2803]
[1724283463433,0.07084358,2626.8,2626.4,6.08769]
[1724283463870,0.07084358,2626.8,2626.4,2.2803]
[1724283464071,0.07084358,2626.8,2626.6,6.0631]
[1724283464371,0.07084358,2626.8,2626.7,4.41336]
[1724283471279,0.07084358,2626.8,2626.7,8.22041]
[1724283471636,0.39766179,2626.9,2626.8,3.80691]
[1724283472086,0.46858813,2626.9,2626.8,3.80691]
[1724283472869,0.46858813,2626.9,2626.7,4.41328]
[1724283473034,0.46858813,2626.9,2626.7,3.80697]
[1724283473379,0.46858813,2626.9,2626.7,7.61394]
[1724283473577,0.46858813,2626.9,2626.7,3.80697]
[1724283473737,0.46858813,2626.9,2626.7,7.61394]
[1724283475480,0.46858813,2626.9,2626.7,7.61393]
[1724283475679,0.46858813,2626.9,2626.7,3.80696]
[1724283476382,0.46858813,2626.9,2626.7,7.61392]
[1724283477271,0.46858813,2626.9,2626.7,3.80696]
[1724283482147,0.46858813,2626.9,2626.6,2.256]
[1724283482347,3.80695,2626.8,2626.3,2.498]
[1724283482847,0.39766179,2626.9,2626.3,6.30555]
[1724283483062,0.07048611,2626.8,2626.4,3.80741]
[1724283483477,0.07048611,2626.8,2626.5,3.80732]
[1724283483664,0.07048611,2626.8,2626.7,6.11495]
[1724283484064,0.39766179,2626.9,2626.7,6.11495]
[1724283484263,0.39766179,2626.9,2626.4,3.80739]
[1724283484484,0.39766179,2626.9,2626.5,2.3079]
[1724283485288,0.06900482,2626.8,2626.5,2.3079]
[1724283485653,3.87593482,2626.8,2626.2,2.3079]
[1724283485852,3.80729,2626.6,2626.2,2.3079]
[1724283486153,0.06877895,2626.5,2626.0,6.14417]
[1724283486488,0.39762074,2626.5,2626.0,6.14417]
[1724283486992,0.39762074,2626.5,2626.2,3.80774]
[1724283487375,0.0685303,2626.4,2626.2,3.80774]
[1724283488563,0.0685303,2626.4,2626.2,7.61548]
[1724283488892,0.0685303,2626.4,2626.2,3.8077]
[1724283489764,0.0685303,2626.4,2626.3,10.03406]
[1724283489968,0.39762074,2626.5,2626.4,3.80749]
[1724283490171,0.46612712,2626.5,2626.4,3.80749]
[1724283490663,0.46612712,2626.5,2626.4,7.61498]
[1724283490871,0.46612712,2626.5,2626.4,8.618358]
[1724283491651,0.39762074,2626.5,2626.4,11.016958]
[1724283493591,0.46377744,2626.5,2626.4,11.016958]
[1724283494002,0.39762074,2626.5,2626.4,11.016958]
[1724283494784,0.46377744,2626.5,2626.4,11.016958]
[1724283495218,0.46377744,2626.5,2626.4,6.20609]
[1724283496023,0.46377744,2626.5,2626.4,2.3986]
[1724283496319,0.46377744,2626.5,2626.2,6.2536]
[1724283496529,0.46377744,2626.5,2626.2,2.4459]
[1724283497574,0.46377744,2626.5,2626.2,6.25365]
[1724283498951,0.46377744,2626.5,2625.8,6.12288]
[1724283499240,4.20505074,2626.5,2625.9,3.80819]
[1724283499582,0.06613837,2626.4,2625.9,3.80819]
[1724283500257,0.06613837,2626.4,2626.2,6.25427]
[1724283500429,0.06613837,2626.4,2626.3,7.61526]
[1724283501390,0.06613837,2626.4,2626.3,10.10366]
[1724283501731,6.80642,2627.2,2626.5,3.80726]
[1724283501931,0.06675402,2627.1,2626.5,3.80726]
[1724283502432,3.87323402,2627.1,2626.5,3.80726]
[1724283503188,3.80686,2626.9,2626.3,6.29603]
[1724283503541,3.80686,2626.9,2626.3,2.4884]
[1724283503542,0.06644907,2626.8,2626.3,2.4884]
[1724283505224,0.06644907,2626.8,2626.3,6.29602]
[1724283505535,3.87336907,2626.8,2626.3,6.29602]
[1724283506590,0.06644907,2626.8,2626.4,3.80745]
[1724283506992,3.80656,2627.1,2626.4,3.80745]
[1724283507191,0.066399,2626.7,2626.5,3.80733]
[1724283507508,3.80648,2627.1,2626.6,3.8072]
[1724283507710,0.06670528,2627.0,2626.7,2.4581]
[1724283508243,0.06670528,2627.0,2626.5,6.26543]
[1724283508734,3.80685,2626.9,2626.5,2.4581]
[1724283508935,0.06652923,2626.8,2626.5,2.4581]
[1724283509494,3.8072,2626.6,2626.0,3.80795]
[1724283509697,0.06623668,2626.5,2626.1,2.2863]
[1724283509894,3.8071,2626.7,2626.1,2.2863]
[1724283510137,0.06640737,2626.6,2626.2,4.417195]
[1724283510442,0.06640737,2626.6,2626.2,0.609425]
[1724283510647,0.06640737,2626.6,2626.4,7.61481]
[1724283510805,3.80663,2627.0,2626.4,3.8074]
[1724283510995,0.06625922,2626.5,2626.4,3.8074]
[1724283511195,3.80663,2627.0,2626.4,3.8074]
[1724283511390,0.06621336,2626.5,2626.4,3.8074]
[1724283511750,0.46374821,2626.5,2626.4,4.804413]
[1724283513845,0.46374821,2626.5,2626.4,14.838803]
[1724283514106,0.46374821,2626.5,2626.4,10.929803]
[1724283514264,0.39753485,2626.5,2626.4,10.929803]
[1724283514460,0.39753485,2626.5,2626.4,7.122313]
[1724283515293,0.39753485,2626.5,2626.4,6.1253]
[1724283516704,0.39753485,2626.5,2626.4,9.93279]
[1724283516877,0.39753485,2626.5,2626.4,6.1253]
[1724283517079,0.39753485,2626.5,2626.4,9.93279]
[1724283517964,0.39753485,2626.5,2626.4,6.1253]
[1724283518461,0.39753485,2626.5,2626.4,7.118583]
[1724283519492,0.46405519,2626.5,2626.4,10.926073]
[1724283519810,0.39753485,2626.5,2626.4,10.926073]
[1724283523302,4.32649518,2627.5,2626.5,2.4231]
[1724283523610,0.06527656,2627.4,2627.3,6.22928]
[1724283523816,0.06527656,2627.4,2627.3,10.03546]
[1724283523975,0.59693964,2628.2,2627.3,10.03546]
[1724283523976,3.80476,2628.3,2627.7,3.80558]
[1724283524177,0.06379865,2628.2,2627.8,2.50340474]
[1724283524425,7.60881,2628.6,2627.9,3.80522]
[1724283524622,4.97121578,2628.7,2627.8,2.4273]
[1724283524628,0.06360763,2628.1,2627.8,2.4273]
[1724283524787,3.80483,2628.3,2627.7,3.80549]
[1724283524989,0.06368413,2628.2,2627.7,3.80549]
[1724283525191,3.86856413,2628.2,2627.7,3.80549]
[1724283526234,3.86856413,2628.2,2627.5,10.0389]
[1724283526379,3.86856413,2628.2,2627.6,3.8057]
[1724283526809,3.86856413,2628.2,2627.7,3.80558]
[1724283527597,3.86856413,2628.2,2627.5,10.03884]
[1724283528123,3.86856413,2628.2,2627.5,6.23307]
[1724283528528,3.80519,2628.0,2627.5,2.4273]
[1724283528887,0.06340363,2627.9,2627.5,2.4273]
[1724283529128,0.06340363,2627.9,2627.5,6.23311]
[1724283529431,7.60989,2628.2,2627.5,6.2331]
[1724283529577,0.0632748,2627.8,2627.5,10.0389]
[1724283529780,3.80488,2628.2,2627.5,10.0389]
[1724283529978,0.06360763,2628.1,2627.6,3.80567]
[1724283530580,0.06360763,2628.1,2627.7,3.8056]
[1724283531834,3.80482,2628.3,2627.7,3.8056]
[1724283532346,0.06376454,2628.2,2627.7,3.8056]
[1724283532851,0.06376454,2628.2,2628.0,3.80509]
[1724283533048,0.06376454,2628.2,2628.1,3.80503]
[1724283533219,7.73417,2628.7,2628.1,6.20073]
[1724283533843,0.06442274,2628.6,2628.1,6.20073]
[1724283534143,3.86873274,2628.6,2628.1,6.20073]
[1724283535747,3.80449,2628.5,2628.1,2.3957]
[1724283535901,3.8046,2628.4,2627.9,3.8052]
[1724283536258,3.8046,2628.4,2627.3,3.909]
[1724283536259,3.80513,2628.1,2627.6,3.80574]
[1724283536459,7.60964,2628.3,2627.6,3.80574]
[1724283536630,0.06423816,2628.0,2627.7,6.08139]
[1724283536815,3.80479,2628.3,2627.7,6.08139]
[1724283537012,0.06413747,2627.9,2627.7,6.08139]
[1724283537213,3.80479,2628.3,2627.7,7.070111]
[1724283537461,0.06403545,2627.8,2627.7,9.88699]
[1724283537632,4.84499451,2628.5,2627.8,3.80535]
[1724283537933,3.80462,2628.4,2627.8,3.80535]
[1724283538154,3.80474,2628.3,2627.7,9.88699]
[1724283538464,3.80474,2628.3,2627.7,6.08139]
[1724283538623,3.80474,2628.3,2627.7,9.88691]
[1724283538828,3.80474,2628.3,2627.7,2.2758]
[1724283539754,3.80505,2628.1,2627.7,2.2758]
[1724283540522,0.39756707,2628.0,2627.7,2.2758]
[1724283540963,0.39756707,2628.0,2627.7,6.08136]
[1724283541167,0.39756707,2628.0,2627.7,7.070078]
[1724283541740,0.39756707,2628.0,2627.9,3.80531]
[1724283543264,0.39756707,2628.0,2627.8,3.80537]
[1724283543465,0.39756707,2628.0,2627.9,2.3772]
[1724283543625,0.39756707,2628.0,2627.9,6.18251]
[1724283543825,0.39756707,2628.0,2627.9,7.2801698]
[1724283545379,0.39756707,2628.0,2627.9,11.0854798]
[1724283548053,3.80423,2628.7,2628.2,2.2562]
[1724283548250,0.39756317,2628.3,2628.2,2.2562]
[1724283548688,3.80395,2628.9,2628.2,2.2562]
[1724283548843,0.39757942,2628.4,2628.2,6.06108]
[1724283549041,3.0,2629.0,2628.3,0.99420971]
[1724283549389,0.06063403,2628.9,2628.8,6.08091]
[1724283549555,0.03030868,2629.2,2628.8,2.2769]
[1724283549556,0.42787512,2629.2,2628.8,2.2769]
[1724283549754,0.06076396,2629.1,2628.8,2.2769]
[1724283549958,0.06076396,2629.1,2628.8,2.885004]
[1724283550498,3.86435396,2629.1,2628.5,6.20304]
[1724283550694,3.86435396,2629.1,2628.5,2.3987]
[1724283550989,0.06101446,2629.0,2628.5,2.3987]
[1724283551188,0.06101446,2629.0,2628.5,6.20308]
[1724283551341,0.06101446,2629.0,2628.5,7.203834]
[1724283551542,3.80398,2628.9,2628.5,2.3987]
[1724283551788,0.0607838,2628.8,2628.5,2.3987]
[1724283553186,0.06062695,2628.7,2628.5,6.20313]
[1724283553346,7.60729,2629.1,2628.5,6.20313]
[1724283553546,0.06093398,2629.0,2628.5,6.20313]
[1724283553765,0.06093398,2629.0,2628.5,2.3987]
[1724283553973,3.86472398,2629.0,2628.5,2.3987]
[1724283555061,0.06093398,2629.0,2628.5,6.20313]
[1724283556298,0.06093398,2629.0,2628.5,2.3987]
[1724283556652,3.86467398,2629.0,2628.5,2.3987]
[1724283557067,0.06093398,2629.0,2628.5,2.89008752]
[1724283557259,0.06093398,2629.0,2628.5,6.69442752]
[1724283558202,0.06093398,2629.0,2628.6,3.80428]
[1724283558906,0.06093398,2629.0,2628.7,3.80415]
[1724283559071,0.06093398,2629.0,2628.7,2.4452]
[1724283559245,0.42787512,2629.2,2628.8,4.428928]
[1724283559451,0.06078867,2628.9,2628.8,4.428868]
[1724283559701,0.42787512,2629.2,2628.8,4.428868]
[1724283559854,0.0609526,2628.9,2628.8,4.428868]
[1724283560052,0.42787512,2629.2,2628.8,4.428868]
[1724283560254,0.0609526,2628.9,2628.8,4.428868]
[1724283560488,0.42787512,2629.2,2628.8,4.428868]
[1724283560689,0.0609526,2628.9,2628.8,0.624948]
[1724283560872,0.42787512,2629.2,2628.8,0.624948]
[1724283561047,4.23131512,2629.2,2628.7,2.4452]
[1724283561287,3.86490937,2629.1,2628.7,2.4452]
[1724283561789,0.06123937,2629.1,2628.7,2.4452]
[1724283561989,0.06123937,2629.1,2628.7,6.24931]
[1724283563496,0.06123937,2629.1,2628.7,2.4452]
[1724283563727,0.06123937,2629.1,2628.8,4.04842]
[1724283564388,0.06123937,2629.1,2628.9,3.80386]
[1724283565326,0.06123937,2629.1,2628.9,7.60756]
[1724283565529,0.06123937,2629.1,2629.0,3.80372]
[1724283565730,0.06123937,2629.1,2629.0,6.14102]
[1724283565928,0.06123937,2629.1,2629.0,7.159952]
[1724283566128,0.42787512,2629.2,2629.1,3.80358]
[1724283566504,0.48916029,2629.2,2629.1,3.80358]
[1724283567031,0.45885161,2629.2,2629.1,3.80358]
[1724283569457,0.45885161,2629.2,2629.1,9.92446]
[1724283569749,0.45885161,2629.2,2629.1,11.0187992]
[1724283569947,0.39756644,2629.2,2629.1,11.0187992]
[1724283572251,0.4594931,2629.2,2629.1,11.0187992]
[1724283573943,0.4594931,2629.2,2629.1,7.2152192]
[1724283574146,0.39756644,2629.2,2629.1,7.2152192]
[1724283574311,0.45949714,2629.2,2629.1,7.2152192]
[1724283574709,0.45949714,2629.2,2629.1,4.8979192]
[1724283575205,0.45949714,2629.2,2629.1,1.0943392]
[1724283575446,0.45949714,2629.2,2628.9,10.07979]
[1724283575647,0.45949714,2629.2,2629.0,3.80368]
[1724283575807,0.45949714,2629.2,2629.1,3.80358]
[1724283577444,0.45949714,2629.2,2629.1,6.27578]
[1724283579670,0.45949714,2629.2,2629.1,10.07936]
[1724283579955,0.45949714,2629.2,2629.1,11.087296]
[1724283580110,0.39756644,2629.2,2629.1,11.087296]
[1724283580508,0.39682581,2630.0,2629.9,3.80242]
[1724283580755,3.80184,2630.3,2629.8,2.4801]
[1724283580927,3.80184,2630.3,2629.5,7.60587]
[1724283580928,0.06266985,2630.0,2629.5,10.08597]
[1724283581259,0.06262733,2629.9,2629.6,1.757597]
[1724283581620,3.80216,2630.1,2629.6,1.757597]
[1724283581824,0.06266786,2630.0,2629.6,1.757597]
[1724283582028,0.06266786,2630.0,2629.7,3.80266]
[1724283582364,0.39747942,2630.2,2629.6,1.757597]
[1724283582365,3.80223,2630.1,2629.6,1.757597]
[1724283582562,0.06264638,2629.9,2629.6,1.757597]
[1724283582754,3.80223,2630.1,2629.6,1.757597]
[1724283583130,0.06293963,2630.0,2629.6,1.757597]
[1724283583460,0.06293963,2630.0,2629.6,5.560427]
[1724283583875,0.06293963,2630.0,2629.7,4.9870527]
[1724283584180,3.80383,2629.0,2628.5,2.4981]
[1724283584488,3.80383,2629.0,2628.5,6.30252]
[1724283584646,3.80383,2629.0,2628.5,2.4981]
[1724283585033,7.60705,2629.2,2628.5,6.3025]
[1724283585269,3.86580582,2629.1,2628.6,1.010699]
[1724283586261,3.80372,2629.0,2628.6,1.010699]
[1724283586670,0.06189028,2628.9,2628.6,1.010699]
[1724283590699,0.06189028,2628.9,2628.5,2.4981]
[1724283591071,7.60754,2629.0,2628.5,2.4981]
[1724283591281,3.80372,2629.0,2628.5,2.4981]
[1724283591487,3.8041,2628.8,2628.5,2.4981]
[1724283591709,7.60821,2628.8,2628.5,2.4981]
[1724283592010,0.0613702,2628.7,2628.5,2.4981]
[1724283592171,3.8041,2628.8,2628.5,2.4981]
[1724283592514,3.8041,2628.8,2628.3,7.49]
[1724283592515,3.8043,2628.6,2628.3,7.49]
[1724283592722,3.8043,2628.6,2628.0,12.15]
[1724283592723,3.80459,2628.4,2628.0,2.498]
[1724283593000,0.06092927,2628.3,2628.0,2.498]
[1724283593213,3.80467,2628.4,2628.0,2.498]
[1724283593214,7.60936,2628.4,2628.0,2.498]
[1724283593361,0.06086947,2628.3,2628.0,2.498]
[1724283595206,0.06086947,2628.3,2628.1,6.08014]
[1724283595503,3.80418,2628.7,2628.1,6.08014]
[1724283595909,0.06065997,2628.6,2628.2,3.80484]
[1724283596511,0.06071069,2628.5,2628.1,6.08019]
[1724283596801,0.06071069,2628.5,2628.2,1.0515568]
[1724283597214,0.06071069,2628.5,2628.3,2.3272]
[1724283600691,0.06071069,2628.5,2628.1,2.3765]
[1724283601028,3.8047,2628.4,2628.1,2.3765]
[1724283601229,0.06053336,2628.3,2628.2,0.23765]
[1724283601380,0.3975976,2628.6,2628.2,6.35439]
[1724283601581,0.06054682,2628.5,2628.2,6.35439]
[1724283602335,0.06054682,2628.5,2628.3,2.312]
[1724283602698,0.06054682,2628.5,2628.4,0.635439]
[1724283603058,4.20160581,2628.8,2628.4,0.635439]
[1724283603267,0.06046893,2628.5,2628.4,0.635439]
[1724283603464,3.80417,2628.7,2628.3,2.312]
[1724283603787,0.06046893,2628.5,2628.3,2.312]
[1724283603958,3.80417,2628.7,2628.3,2.312]
[1724283604144,0.06057089,2628.6,2628.3,2.947459]
[1724283605246,3.80445,2628.5,2628.3,2.312]
[1724283605452,3.86494705,2628.5,2628.3,2.312]
[1724283607271,0.06049705,2628.5,2628.3,2.312]
[1724283608913,4.20169581,2628.8,2628.3,2.312]
[1724283609107,0.06029415,2628.4,2628.3,2.312]
[1724283609264,4.20169581,2628.8,2628.3,2.923689]
[1724283609465,0.06064197,2628.7,2628.3,2.923689]
[1724283609667,3.8041,2628.8,2628.3,2.923689]
[1724283609893,0.06072238,2628.7,2628.3,2.923689]
[1724283610128,0.06072238,2628.7,2628.4,0.6728529]
[1724283610277,3.8041,2628.8,2628.4,0.6728529]
[1724283610483,0.06069558,2628.7,2628.4,0.6728529]
[1724283610810,0.06062043,2628.6,2628.4,0.6728529]
[1724283611162,3.8041,2628.8,2628.4,0.6728529]
[1724283611572,3.8038,2629.0,2628.5,3.15332519]
[1724283612249,0.0609828,2628.9,2628.5,3.15332519]
[1724283614077,0.0609828,2628.9,2628.6,2.3754]
[1724283616634,0.0609828,2628.9,2628.8,9.91082]
[1724283616796,0.0609828,2628.9,2628.8,13.81982]
[1724283617120,0.39756943,2629.6,2629.3,2.3028]
[1724283617504,0.06153362,2629.5,2629.3,2.3028]
[1724283618535,0.06153362,2629.5,2629.3,6.10606]
[1724283618737,0.06153362,2629.5,2629.4,2.4253]
[1724283619046,0.06153362,2629.5,2629.4,6.85890198]
[1724283619385,0.39753218,2630.0,2629.4,6.85890198]
[1724283619640,3.80243,2629.9,2629.4,2.4253]
[1724283619789,3.86468131,2629.9,2629.4,2.4253]
[1724283622839,0.06225131,2629.9,2629.5,3.80288]
[1724283622979,0.06225131,2629.9,2629.6,3.80276]
[1724283623183,0.06225131,2629.9,2629.7,0.622536]
[1724283623932,0.06225131,2629.9,2629.8,2.4754]
[1724283624937,0.06225131,2629.9,2629.8,6.27797]
[1724283625099,1.10303303,2629.9,2628.8,2.2883]
[1724283625299,3.80383,2629.0,2628.4,2.2883]
[1724283625500,0.06176219,2628.9,2628.4,2.2883]
[1724283626202,0.06176219,2628.9,2628.4,6.09284]
[1724283627529,0.06176219,2628.9,2628.5,3.80433]
[1724283628094,3.80367,2629.1,2628.5,3.80433]
[1724283628296,0.06147409,2629.0,2628.6,0.989717]
[1724283629433,3.86523409,2629.0,2628.6,0.989717]
[1724283631706,0.06147409,2629.0,2628.6,0.989717]
[1724283631909,3.80352,2629.2,2628.6,0.989717]
[1724283632111,0.09648019,2629.1,2628.6,0.989717]
[1724283632405,3.90014019,2629.1,2628.6,0.989717]
[1724283632606,0.09648019,2629.1,2628.6,0.989717]
[1724283633549,3.80374,2629.0,2628.6,0.989717]
[1724283634010,0.09622522,2628.9,2628.6,0.989717]